[Event "January 2 Early 2024"]
[Site "https://www.chess.com"]
[Date "2024.01.02"]
[Round "8"]
[White "Morales Garcia, Sergio Joshafatt"]
[Black "SkinnyPuppy8"]
[Result "0-1"]
[Board "150"]
[TimeControl "180+1"]
[WhiteFideId "5106249"]
[WhiteElo "2437"]
[BlackElo "2293"]
[WhiteTeam "MEX"]
[WhiteClock "0:00:03"]
[BlackClock "0:00:08"]

1. d4 {[%clk 0:03:00]}  d5 {[%clk 0:02:59]} 2. c4 {[%clk 0:03:00]}  e6 {[%clk 0:02:59]} 3. Nf3 {[%clk 0:03:00]}  c6 {[%clk 0:02:59]} 4. Qc2 {[%clk 0:02:59]}  f5 {[%clk 0:02:59]} 5. Bg5 {[%clk 0:02:55]}  Be7 {[%clk 0:02:58]} 6. Bxe7 {[%clk 0:02:50]}  Qxe7 {[%clk 0:02:58]} 7. e3 {[%clk 0:02:49]}  Nf6 {[%clk 0:02:58]} 8. Bd3 {[%clk 0:02:49]}  Nbd7 {[%clk 0:02:57]} 9. O-O {[%clk 0:02:49]}  g6 {[%clk 0:02:54]} 10. Nc3 {[%clk 0:02:49]}  O-O {[%clk 0:02:54]} 11. a3 {[%clk 0:02:47]}  Kh8 {[%clk 0:02:51]} 12. Nd2 {[%clk 0:02:46]}  dxc4 {[%clk 0:02:47]} 13. Nxc4 {[%clk 0:02:45]}  e5 {[%clk 0:02:47]} 14. dxe5 {[%clk 0:02:38]}  Nxe5 {[%clk 0:02:47]} 15. Nxe5 {[%clk 0:02:37]}  Qxe5 {[%clk 0:02:48]} 16. Rfe1 {[%clk 0:02:29]}  Ng4 {[%clk 0:02:42]} 17. g3 {[%clk 0:02:29]}  Be6 {[%clk 0:02:37]} 18. Nd1 {[%clk 0:01:43]}  Rad8 {[%clk 0:02:32]} 19. Be2 {[%clk 0:01:35]}  Bd5 {[%clk 0:02:13]} 20. Qc3 {[%clk 0:01:33]}  Qxc3 {[%clk 0:01:57]} 21. Nxc3 {[%clk 0:01:34]}  Nf6 {[%clk 0:01:56]} 22. Bd1 {[%clk 0:01:23]}  Rd6 {[%clk 0:01:53]} 23. Bc2 {[%clk 0:01:22]}  Rfd8 {[%clk 0:01:53]} 24. Rad1 {[%clk 0:01:22]}  Bf3 {[%clk 0:01:51]} 25. Rxd6 {[%clk 0:01:17]}  Rxd6 {[%clk 0:01:52]} 26. Bd1 {[%clk 0:01:17]}  Be4 {[%clk 0:01:42]} 27. f3 {[%clk 0:01:08]}  Bd3 {[%clk 0:01:38]} 28. Kf2 {[%clk 0:01:07]}  Bc4 {[%clk 0:01:36]} 29. e4 {[%clk 0:00:46]}  Rd2+ {[%clk 0:01:18]} 30. Ke3 {[%clk 0:00:46]}  Rxb2 {[%clk 0:01:01]} 31. exf5 {[%clk 0:00:45]}  gxf5 {[%clk 0:00:57]} 32. Kf4 {[%clk 0:00:46]}  Rxh2 {[%clk 0:00:38]} 33. Kxf5 {[%clk 0:00:41]}  Nd5 {[%clk 0:00:35]} 34. Re8+ {[%clk 0:00:32]}  Kg7 {[%clk 0:00:35]} 35. Nxd5 {[%clk 0:00:32]}  Bxd5 {[%clk 0:00:35]} 36. Re7+ {[%clk 0:00:33]}  Kf8 {[%clk 0:00:33]} 37. Rxb7 {[%clk 0:00:31]}  Rh5+ {[%clk 0:00:32]} 38. Kf6 {[%clk 0:00:28]}  Rh6+ {[%clk 0:00:33]} 39. Ke5 {[%clk 0:00:28]}  Re6+ {[%clk 0:00:28]} 40. Kd4 {[%clk 0:00:28]}  Re7 {[%clk 0:00:26]} 41. Rb8+ {[%clk 0:00:22]}  Kg7 {[%clk 0:00:26]} 42. f4 {[%clk 0:00:15]}  Re1 {[%clk 0:00:24]} 43. Bb3 {[%clk 0:00:12]}  Bxb3 {[%clk 0:00:23]} 44. Rxb3 {[%clk 0:00:12]}  Rc1 {[%clk 0:00:21]} 45. Rb7+ {[%clk 0:00:11]}  Kg6 {[%clk 0:00:21]} 46. g4 {[%clk 0:00:11]}  h6 {[%clk 0:00:20]} 47. Rxa7 {[%clk 0:00:10]}  c5+ {[%clk 0:00:19]} 48. Ke5 {[%clk 0:00:10]}  Re1+ {[%clk 0:00:18]} 49. Kd5 {[%clk 0:00:10]}  Rc1 {[%clk 0:00:16]} 50. Ra6+ {[%clk 0:00:08]}  Kg7 {[%clk 0:00:16]} 51. Ke5 {[%clk 0:00:08]}  Re1+ {[%clk 0:00:14]} 52. Kf5 {[%clk 0:00:08]}  c4 {[%clk 0:00:14]} 53. Ra7+ {[%clk 0:00:08]}  Kf8 {[%clk 0:00:14]} 54. Rc7 {[%clk 0:00:08]}  Re3 {[%clk 0:00:12]} 55. a4 {[%clk 0:00:04]}  c3 {[%clk 0:00:12]} 56. Kg6 {[%clk 0:00:03]}  Re4 {[%clk 0:00:10]} 57. Kf5 {[%clk 0:00:03]}  Rxa4 {[%clk 0:00:09]} 58. Rxc3 {[%clk 0:00:02]}  Ra5+ {[%clk 0:00:09]} 59. Kg6 {[%clk 0:00:02]}  Ra6+ {[%clk 0:00:10]} 60. Kh5 {[%clk 0:00:03]}  Rf6 {[%clk 0:00:05]} 61. f5 {[%clk 0:00:03]}  Kg7 {[%clk 0:00:06]} 62. Rc7+ {[%clk 0:00:03]}  Kg8 {[%clk 0:00:06]} 63. Rb7 {[%clk 0:00:03]}  Kf8 {[%clk 0:00:06]} 64. Rh7 {[%clk 0:00:02]}  Kg8 {[%clk 0:00:04]} 65. Rxh6 {[%clk 0:00:02]}  Rf7 {[%clk 0:00:05]} 66. Kg5 {[%clk 0:00:02]}  Kf8 {[%clk 0:00:05]} 67. Rg6 {[%clk 0:00:03]}  Re7 {[%clk 0:00:05]} 68. Rb6 {[%clk 0:00:03]}  Rg7+ {[%clk 0:00:05]} 69. Kf6 {[%clk 0:00:03]}  Rf7+ {[%clk 0:00:06]} 70. Kg5 {[%clk 0:00:04]}  Rg7+ {[%clk 0:00:06]} 71. Kf4 {[%clk 0:00:04]}  Rb7 {[%clk 0:00:06]} 72. f6 {[%clk 0:00:03]}  Rxb6 {[%clk 0:00:06]} 73. Kf5 {[%clk 0:00:04]}  Kf7 {[%clk 0:00:06]} 74. g5 {[%clk 0:00:04]}  Rb5+ {[%clk 0:00:06]} 75. Kg4 {[%clk 0:00:04]}  Kg6 {[%clk 0:00:07]} 76. Kf4 {[%clk 0:00:04]}  Rf5+ {[%clk 0:00:06]} 77. Kg4 {[%clk 0:00:04]}  Rxg5+ {[%clk 0:00:07]} 78. Kf3 {[%clk 0:00:04]}  Rf5+ {[%clk 0:00:07]} 79. Ke4 {[%clk 0:00:03]}  Kxf6 {[%clk 0:00:08]} 0-1

[Event "January 2 Early 2024"]
[Site "https://www.chess.com"]
[Date "2024.01.02"]
[Round "8"]
[White "Travkina, Anastasia"]
[Black "Borda Rodas, Anapaola S."]
[Result "1-0"]
[Board "151"]
[TimeControl "180+1"]
[WhiteFideId "24129151"]
[BlackFideId "152781"]
[WhiteElo "2371"]
[BlackElo "2394"]
[WhiteTeam "RUS"]
[BlackTeam "ARG"]
[WhiteClock "0:00:19"]
[BlackClock "0:00:00"]

1. e4 {[%clk 0:03:00]}  e5 {[%clk 0:02:59]} 2. Nf3 {[%clk 0:03:01]}  Nc6 {[%clk 0:02:59]} 3. Bc4 {[%clk 0:03:01]}  Bc5 {[%clk 0:02:58]} 4. b4 {[%clk 0:03:00]}  Bxb4 {[%clk 0:02:58]} 5. c3 {[%clk 0:03:01]}  Ba5 {[%clk 0:02:58]} 6. d4 {[%clk 0:03:02]}  Nge7 {[%clk 0:02:51]} 7. Ng5 {[%clk 0:02:58]}  d5 {[%clk 0:01:09]} 8. exd5 {[%clk 0:02:57]}  Nxd5 {[%clk 0:01:05]} 9. Nxf7 {[%clk 0:02:48]}  Kxf7 {[%clk 0:01:04]} 10. Qf3+ {[%clk 0:02:47]}  Ke8 {[%clk 0:00:53]} 11. Bxd5 {[%clk 0:02:37]}  Rf8 {[%clk 0:00:49]} 12. Qe4 {[%clk 0:02:37]}  Nxd4 {[%clk 0:00:32]} 13. Qxe5+ {[%clk 0:02:15]}  Qe7 {[%clk 0:00:29]} 14. Qxe7+ {[%clk 0:02:16]}  Kxe7 {[%clk 0:00:29]} 15. Ba3+ {[%clk 0:02:16]}  Ke8 {[%clk 0:00:26]} 16. Bxf8 {[%clk 0:02:14]}  Kxf8 {[%clk 0:00:27]} 17. Kd2 {[%clk 0:02:01]}  Bf5 {[%clk 0:00:20]} 18. Na3 {[%clk 0:01:53]}  Rd8 {[%clk 0:00:19]} 19. Ke3 {[%clk 0:01:46]}  Bxc3 {[%clk 0:00:18]} 20. Rac1 {[%clk 0:01:42]}  Bb2 {[%clk 0:00:18]} 21. Rxc7 {[%clk 0:01:33]}  Rxd5 {[%clk 0:00:18]} 22. Nc4 {[%clk 0:01:30]}  Nc2+ {[%clk 0:00:18]} 23. Kf4 {[%clk 0:01:26]}  Bd4 {[%clk 0:00:18]} 24. g4 {[%clk 0:01:12]}  Bd7 {[%clk 0:00:17]} 25. Ne3 {[%clk 0:00:54]}  Be5+ {[%clk 0:00:15]} 26. Ke4 {[%clk 0:00:50]}  Bxc7 {[%clk 0:00:14]} 27. Nxd5 {[%clk 0:00:42]}  Bc6 {[%clk 0:00:14]} 28. Kd3 {[%clk 0:00:30]}  Bxd5 {[%clk 0:00:14]} 29. Rc1 {[%clk 0:00:31]}  Nb4+ {[%clk 0:00:13]} 30. Kd4 {[%clk 0:00:31]}  Bb6+ {[%clk 0:00:13]} 31. Ke5 {[%clk 0:00:31]}  a5 {[%clk 0:00:14]} 32. Kd6 {[%clk 0:00:26]}  Kf7 {[%clk 0:00:13]} 33. f4 {[%clk 0:00:26]}  g5 {[%clk 0:00:13]} 34. f5 {[%clk 0:00:25]}  Bf3 {[%clk 0:00:13]} 35. a3 {[%clk 0:00:21]}  Nc6 {[%clk 0:00:13]} 36. Rb1 {[%clk 0:00:20]}  Bd8 {[%clk 0:00:09]} 37. Rxb7+ {[%clk 0:00:21]}  Ne7 {[%clk 0:00:09]} 38. Rd7 {[%clk 0:00:20]}  Bc6 {[%clk 0:00:04]} 39. Rxd8 {[%clk 0:00:19]}  Bb5 {[%clk 0:00:04]} 40. Rb8 {[%clk 0:00:19]}  Be8 {[%clk 0:00:00]} 41. Rb7 {[%clk 0:00:19]} 1-0

[Event "January 2 Early 2024"]
[Site "https://www.chess.com"]
[Date "2024.01.02"]
[Round "8"]
[White "Tikhonov, Viacheslav"]
[Black "Daurimbetov, Azamat"]
[Result "1-0"]
[Board "152"]
[TimeControl "180+1"]
[WhiteFideId "44196407"]
[BlackFideId "14201950"]
[WhiteElo "2465"]
[BlackElo "2243"]
[WhiteTeam "RUS"]
[BlackTeam "UZB"]
[WhiteClock "0:02:25"]
[BlackClock "0:01:27"]

1. e4 {[%clk 0:03:00]}  e6 {[%clk 0:03:00]} 2. d4 {[%clk 0:03:00]}  d5 {[%clk 0:03:01]} 3. Bd3 {[%clk 0:03:01]}  dxe4 {[%clk 0:03:00]} 4. Bxe4 {[%clk 0:03:02]}  Nf6 {[%clk 0:03:00]} 5. Bf3 {[%clk 0:03:02]}  c5 {[%clk 0:03:01]} 6. Ne2 {[%clk 0:03:01]}  Nc6 {[%clk 0:03:00]} 7. Be3 {[%clk 0:03:02]}  cxd4 {[%clk 0:02:47]} 8. Nxd4 {[%clk 0:03:01]}  Ne5 {[%clk 0:02:41]} 9. Nc3 {[%clk 0:03:00]}  Nxf3+ {[%clk 0:02:40]} 10. Qxf3 {[%clk 0:02:59]}  Be7 {[%clk 0:02:40]} 11. O-O-O {[%clk 0:02:57]}  Qa5 {[%clk 0:02:36]} 12. Nc6 {[%clk 0:02:33]}  Qc7 {[%clk 0:02:11]} 13. Nb5 {[%clk 0:02:29]}  Qxc6 {[%clk 0:01:59]} 14. Qxc6+ {[%clk 0:02:29]}  bxc6 {[%clk 0:01:59]} 15. Nc7+ {[%clk 0:02:30]}  Kf8 {[%clk 0:01:59]} 16. Nxa8 {[%clk 0:02:30]}  Nd5 {[%clk 0:01:43]} 17. Bxa7 {[%clk 0:02:30]}  Bb7 {[%clk 0:01:27]} 18. Nb6 {[%clk 0:02:25]} 1-0

[Event "January 2 Early 2024"]
[Site "https://www.chess.com"]
[Date "2024.01.02"]
[Round "8"]
[White "Pourkashiyan, Atousa"]
[Black "KSho99"]
[Result "1-0"]
[Board "153"]
[TimeControl "180+1"]
[WhiteFideId "12502014"]
[WhiteElo "2452"]
[BlackElo "2158"]
[WhiteTeam "USA"]
[WhiteClock "0:01:59"]
[BlackClock "0:00:00"]

1. Nf3 {[%clk 0:03:00]}  e6 {[%clk 0:02:59]} 2. g3 {[%clk 0:02:59]}  f5 {[%clk 0:02:53]} 3. Bg2 {[%clk 0:02:53]}  Nf6 {[%clk 0:02:53]} 4. O-O {[%clk 0:02:53]}  d5 {[%clk 0:02:52]} 5. d3 {[%clk 0:02:54]}  Be7 {[%clk 0:02:46]} 6. b3 {[%clk 0:02:55]}  O-O {[%clk 0:02:46]} 7. Bb2 {[%clk 0:02:55]}  b6 {[%clk 0:02:39]} 8. Nbd2 {[%clk 0:02:55]}  Bb7 {[%clk 0:02:39]} 9. c4 {[%clk 0:02:52]}  c5 {[%clk 0:02:32]} 10. Ng5 {[%clk 0:02:49]}  Qd7 {[%clk 0:02:23]} 11. Ndf3 {[%clk 0:02:50]}  Nc6 {[%clk 0:02:18]} 12. Rc1 {[%clk 0:02:47]}  h6 {[%clk 0:02:13]} 13. Nh3 {[%clk 0:02:47]}  d4 {[%clk 0:02:08]} 14. Nf4 {[%clk 0:02:46]}  Rfe8 {[%clk 0:01:53]} 15. Ng6 {[%clk 0:02:45]}  Bd6 {[%clk 0:01:51]} 16. e3 {[%clk 0:02:45]}  e5 {[%clk 0:01:41]} 17. exd4 {[%clk 0:02:45]}  cxd4 {[%clk 0:01:21]} 18. Bh3 {[%clk 0:02:39]}  Kh7 {[%clk 0:01:08]} 19. Nfh4 {[%clk 0:02:37]}  Ng4 {[%clk 0:00:56]} 20. Nxf5 {[%clk 0:02:37]}  Qxf5 {[%clk 0:00:50]} 21. Nh4 {[%clk 0:02:37]}  Qf6 {[%clk 0:00:44]} 22. Bxg4 {[%clk 0:02:37]}  Ne7 {[%clk 0:00:42]} 23. Bf3 {[%clk 0:02:32]}  Bxf3 {[%clk 0:00:40]} 24. Qxf3 {[%clk 0:02:33]}  Qxf3 {[%clk 0:00:30]} 25. Nxf3 {[%clk 0:02:34]}  Rf8 {[%clk 0:00:24]} 26. Kg2 {[%clk 0:02:34]}  Rae8 {[%clk 0:00:24]} 27. Rce1 {[%clk 0:02:35]}  Nc6 {[%clk 0:00:23]} 28. a3 {[%clk 0:02:33]}  g5 {[%clk 0:00:22]} 29. h3 {[%clk 0:02:32]}  Kg6 {[%clk 0:00:23]} 30. Nd2 {[%clk 0:02:33]}  Bc7 {[%clk 0:00:17]} 31. Ne4 {[%clk 0:02:33]}  Ne7 {[%clk 0:00:15]} 32. Re2 {[%clk 0:02:34]}  Nf5 {[%clk 0:00:15]} 33. Rfe1 {[%clk 0:02:34]}  Re7 {[%clk 0:00:09]} 34. b4 {[%clk 0:02:35]}  Ref7 {[%clk 0:00:07]} 35. c5 {[%clk 0:02:33]}  b5 {[%clk 0:00:07]} 36. Bc1 {[%clk 0:02:19]}  Ne7 {[%clk 0:00:06]} 37. Bd2 {[%clk 0:02:06]}  Nd5 {[%clk 0:00:04]} 38. Rc1 {[%clk 0:02:06]}  Rf3 {[%clk 0:00:01]} 39. c6 {[%clk 0:02:02]}  Rxd3 {[%clk 0:00:01]} 40. Nc5 {[%clk 0:02:03]}  Rxa3 {[%clk 0:00:01]} 41. Ne6 {[%clk 0:02:03]}  Rf7 {[%clk 0:00:01]} 42. Nxc7 {[%clk 0:02:01]}  Nxc7 {[%clk 0:00:01]} 43. Rxe5 {[%clk 0:02:01]}  Kf6 {[%clk 0:00:00]} 44. Re4 {[%clk 0:01:59]} 1-0

[Event "January 2 Early 2024"]
[Site "https://www.chess.com"]
[Date "2024.01.02"]
[Round "8"]
[White "Dyulgerov, Volen"]
[Black "th3d4rkness"]
[Result "0-1"]
[Board "154"]
[TimeControl "180+1"]
[WhiteFideId "2918978"]
[WhiteElo "2438"]
[BlackElo "2146"]
[WhiteTeam "BUL"]
[WhiteClock "0:00:01"]
[BlackClock "0:01:01"]

1. e4 {[%clk 0:03:00]}  c5 {[%clk 0:02:59]} 2. Nf3 {[%clk 0:02:56]}  Nc6 {[%clk 0:02:59]} 3. d4 {[%clk 0:02:52]}  cxd4 {[%clk 0:02:58]} 4. c3 {[%clk 0:02:52]}  d5 {[%clk 0:02:53]} 5. e5 {[%clk 0:02:52]}  Bg4 {[%clk 0:02:51]} 6. cxd4 {[%clk 0:02:52]}  e6 {[%clk 0:02:47]} 7. Nc3 {[%clk 0:02:51]}  Bxf3 {[%clk 0:02:39]} 8. gxf3 {[%clk 0:02:30]}  Nge7 {[%clk 0:02:35]} 9. Bg5 {[%clk 0:02:27]}  Qb6 {[%clk 0:02:33]} 10. Nb5 {[%clk 0:02:23]}  Nf5 {[%clk 0:02:29]} 11. Bd3 {[%clk 0:02:03]}  Nfxd4 {[%clk 0:02:08]} 12. Be3 {[%clk 0:01:54]}  Qa5+ {[%clk 0:02:08]} 13. Kf1 {[%clk 0:01:38]}  Nxb5 {[%clk 0:02:05]} 14. b4 {[%clk 0:01:22]}  Bxb4 {[%clk 0:01:58]} 15. Rb1 {[%clk 0:01:21]}  Nc3 {[%clk 0:01:55]} 16. Qc2 {[%clk 0:01:18]}  Nxb1 {[%clk 0:01:52]} 17. Qxb1 {[%clk 0:01:19]}  O-O-O {[%clk 0:01:40]} 18. Kg2 {[%clk 0:01:17]}  Bc5 {[%clk 0:01:35]} 19. Bf4 {[%clk 0:01:04]}  h6 {[%clk 0:01:27]} 20. Rc1 {[%clk 0:01:03]}  g5 {[%clk 0:01:23]} 21. Bd2 {[%clk 0:00:57]}  Qb6 {[%clk 0:01:21]} 22. Qc2 {[%clk 0:00:56]}  Bxf2 {[%clk 0:01:17]} 23. Rb1 {[%clk 0:00:56]}  Qc5 {[%clk 0:01:14]} 24. Qa4 {[%clk 0:00:46]}  Bh4 {[%clk 0:01:06]} 25. Rf1 {[%clk 0:00:02]}  Qd4 {[%clk 0:01:03]} 26. Ba6 {[%clk 0:00:01]}  Qxa4 {[%clk 0:01:01]} 0-1

[Event "January 2 Early 2024"]
[Site "https://www.chess.com"]
[Date "2024.01.02"]
[Round "8"]
[White "Minina, Veronika"]
[Black "Khamdamova, Afruza"]
[Result "0-1"]
[Board "155"]
[TimeControl "180+1"]
[WhiteFideId "4174780"]
[BlackFideId "14210444"]
[WhiteElo "2280"]
[BlackElo "2523"]
[WhiteTeam "RUS"]
[BlackTeam "UZB"]
[WhiteClock "0:00:06"]
[BlackClock "0:00:36"]

1. Nf3 {[%clk 0:02:56]}  Nf6 {[%clk 0:02:59]} 2. g3 {[%clk 0:02:55]}  d5 {[%clk 0:02:59]} 3. Bg2 {[%clk 0:02:56]}  c5 {[%clk 0:03:00]} 4. O-O {[%clk 0:02:56]}  Nc6 {[%clk 0:03:00]} 5. c4 {[%clk 0:02:56]}  d4 {[%clk 0:02:58]} 6. e3 {[%clk 0:02:56]}  e5 {[%clk 0:02:55]} 7. exd4 {[%clk 0:02:56]}  cxd4 {[%clk 0:02:54]} 8. d3 {[%clk 0:02:52]}  Bd6 {[%clk 0:02:53]} 9. b4 {[%clk 0:02:41]}  Bxb4 {[%clk 0:02:38]} 10. Nxe5 {[%clk 0:02:40]}  Nxe5 {[%clk 0:01:37]} 11. Qa4+ {[%clk 0:02:38]}  Nc6 {[%clk 0:01:35]} 12. Bxc6+ {[%clk 0:02:35]}  bxc6 {[%clk 0:01:34]} 13. Qxb4 {[%clk 0:02:35]}  Be6 {[%clk 0:01:27]} 14. Bg5 {[%clk 0:02:26]}  Rb8 {[%clk 0:01:10]} 15. Qc5 {[%clk 0:02:24]}  Nd7 {[%clk 0:01:01]} 16. Qxd4 {[%clk 0:01:17]}  Qxg5 {[%clk 0:01:00]} 17. Qxa7 {[%clk 0:01:17]}  O-O {[%clk 0:00:59]} 18. Nc3 {[%clk 0:01:13]}  Bh3 {[%clk 0:00:58]} 19. Rfe1 {[%clk 0:01:12]}  Ne5 {[%clk 0:00:55]} 20. Re3 {[%clk 0:01:02]}  Qf5 {[%clk 0:00:47]} 21. Ne4 {[%clk 0:00:58]}  Rb2 {[%clk 0:00:43]} 22. Qa3 {[%clk 0:00:51]}  Rfb8 {[%clk 0:00:39]} 23. Rd1 {[%clk 0:00:39]}  Ng4 {[%clk 0:00:37]} 24. Ree1 {[%clk 0:00:21]}  Rxf2 {[%clk 0:00:37]} 25. Rd2 {[%clk 0:00:13]}  Rxd2 {[%clk 0:00:36]} 26. Nxd2 {[%clk 0:00:06]}  Qf2+ {[%clk 0:00:36]} 0-1

[Event "January 2 Early 2024"]
[Site "https://www.chess.com"]
[Date "2024.01.02"]
[Round "8"]
[White "Slavin, Alexey"]
[Black "Pavlidou, Ekaterini"]
[Result "1-0"]
[Board "160"]
[TimeControl "180+1"]
[WhiteFideId "24104388"]
[BlackFideId "4213262"]
[WhiteElo "2245"]
[BlackElo "2346"]
[WhiteTeam "RUS"]
[BlackTeam "GRE"]
[WhiteClock "0:00:17"]
[BlackClock "0:00:11"]

1. e4 {[%clk 0:02:59]}  c5 {[%clk 0:03:00]} 2. g3 {[%clk 0:02:58]}  Nc6 {[%clk 0:02:59]} 3. Bg2 {[%clk 0:02:59]}  g6 {[%clk 0:03:00]} 4. Ne2 {[%clk 0:02:59]}  Bg7 {[%clk 0:03:00]} 5. O-O {[%clk 0:03:00]}  d6 {[%clk 0:03:01]} 6. Nbc3 {[%clk 0:03:00]}  e5 {[%clk 0:03:01]} 7. a3 {[%clk 0:03:00]}  h5 {[%clk 0:03:00]} 8. h3 {[%clk 0:03:00]}  Nge7 {[%clk 0:02:54]} 9. Rb1 {[%clk 0:02:59]}  a5 {[%clk 0:02:53]} 10. d3 {[%clk 0:02:59]}  Be6 {[%clk 0:02:53]} 11. f4 {[%clk 0:02:57]}  h4 {[%clk 0:02:47]} 12. g4 {[%clk 0:02:56]}  exf4 {[%clk 0:02:46]} 13. Nxf4 {[%clk 0:02:56]}  Nd4 {[%clk 0:02:41]} 14. Nce2 {[%clk 0:02:40]}  Nec6 {[%clk 0:02:34]} 15. c3 {[%clk 0:02:35]}  Bb3 {[%clk 0:02:23]} 16. Qd2 {[%clk 0:02:28]}  Nxe2+ {[%clk 0:02:15]} 17. Qxe2 {[%clk 0:02:27]}  Qe7 {[%clk 0:02:02]} 18. Qf2 {[%clk 0:02:24]}  Ne5 {[%clk 0:01:50]} 19. Be3 {[%clk 0:01:58]}  g5 {[%clk 0:01:40]} 20. Nh5 {[%clk 0:01:57]}  Rxh5 {[%clk 0:01:39]} 21. gxh5 {[%clk 0:01:57]}  Nxd3 {[%clk 0:01:39]} 22. Qf5 {[%clk 0:01:47]}  Nf4 {[%clk 0:01:37]} 23. Bxf4 {[%clk 0:01:41]}  gxf4 {[%clk 0:01:37]} 24. Rxf4 {[%clk 0:01:37]}  Be5 {[%clk 0:01:30]} 25. Rg4 {[%clk 0:01:22]}  Be6 {[%clk 0:01:28]} 26. Qh7 {[%clk 0:01:06]}  O-O-O {[%clk 0:01:27]} 27. Rg8 {[%clk 0:01:03]}  Qf6 {[%clk 0:01:05]} 28. Rf1 {[%clk 0:00:58]}  Bf4 {[%clk 0:01:02]} 29. Rxd8+ {[%clk 0:00:55]}  Kxd8 {[%clk 0:01:00]} 30. h6 {[%clk 0:00:38]}  Qg5 {[%clk 0:00:54]} 31. Qg7 {[%clk 0:00:32]}  Qxh6 {[%clk 0:00:39]} 32. Qxh6 {[%clk 0:00:31]}  Bxh6 {[%clk 0:00:39]} 33. Kf2 {[%clk 0:00:31]}  b5 {[%clk 0:00:35]} 34. Rd1 {[%clk 0:00:29]}  Kc7 {[%clk 0:00:32]} 35. Bf3 {[%clk 0:00:20]}  Bg7 {[%clk 0:00:31]} 36. Bg4 {[%clk 0:00:20]}  Bb3 {[%clk 0:00:30]} 37. Rg1 {[%clk 0:00:19]}  Be5 {[%clk 0:00:25]} 38. Kf3 {[%clk 0:00:18]}  b4 {[%clk 0:00:22]} 39. axb4 {[%clk 0:00:18]}  axb4 {[%clk 0:00:23]} 40. cxb4 {[%clk 0:00:19]}  cxb4 {[%clk 0:00:23]} 41. Rg2 {[%clk 0:00:18]}  Bd1+ {[%clk 0:00:21]} 42. Ke3 {[%clk 0:00:18]}  Bxg4 {[%clk 0:00:20]} 43. Rxg4 {[%clk 0:00:18]}  Bxb2 {[%clk 0:00:19]} 44. Rxh4 {[%clk 0:00:18]}  Be5 {[%clk 0:00:19]} 45. Rh7 {[%clk 0:00:16]}  b3 {[%clk 0:00:18]} 46. Kd2 {[%clk 0:00:15]}  Kc6 {[%clk 0:00:16]} 47. Rxf7 {[%clk 0:00:15]}  b2 {[%clk 0:00:16]} 48. Kc2 {[%clk 0:00:15]}  Kc5 {[%clk 0:00:17]} 49. Rf1 {[%clk 0:00:16]}  Kb4 {[%clk 0:00:16]} 50. Rh1 {[%clk 0:00:17]}  Ka3 {[%clk 0:00:15]} 51. h4 {[%clk 0:00:18]}  Bf4 {[%clk 0:00:15]} 52. h5 {[%clk 0:00:18]}  Bh6 {[%clk 0:00:15]} 53. Kb1 {[%clk 0:00:16]}  Kb3 {[%clk 0:00:12]} 54. Rh3+ {[%clk 0:00:16]}  Kc4 {[%clk 0:00:12]} 55. Kxb2 {[%clk 0:00:17]}  Kd4 {[%clk 0:00:13]} 56. Rh4 {[%clk 0:00:17]}  Ke5 {[%clk 0:00:13]} 57. Kc3 {[%clk 0:00:17]}  Bg5 {[%clk 0:00:13]} 58. Rg4 {[%clk 0:00:17]}  Bh6 {[%clk 0:00:13]} 59. Rg6 {[%clk 0:00:17]}  Kxe4 {[%clk 0:00:11]} 60. Rxh6 {[%clk 0:00:17]} 1-0

[Event "January 2 Early 2024"]
[Site "https://www.chess.com"]
[Date "2024.01.02"]
[Round "8"]
[White "Seder, Mohammed"]
[Black "Sailer, Mike"]
[Result "1-0"]
[Board "164"]
[TimeControl "180+1"]
[WhiteFideId "11505567"]
[BlackFideId "2012901"]
[WhiteElo "2316"]
[BlackElo "2198"]
[WhiteTeam "PLE"]
[BlackTeam "USA"]
[WhiteClock "0:00:06"]
[BlackClock "0:00:00"]

1. e4 {[%clk 0:03:00]}  d5 {[%clk 0:02:59]} 2. exd5 {[%clk 0:02:59]}  Qxd5 {[%clk 0:03:00]} 3. Nc3 {[%clk 0:02:59]}  Qd6 {[%clk 0:02:56]} 4. d4 {[%clk 0:02:58]}  c6 {[%clk 0:02:57]} 5. Nge2 {[%clk 0:02:56]}  Nf6 {[%clk 0:02:57]} 6. Bf4 {[%clk 0:02:55]}  Qb4 {[%clk 0:02:55]} 7. Qd3 {[%clk 0:02:26]}  g6 {[%clk 0:02:35]} 8. O-O-O {[%clk 0:02:24]}  Bf5 {[%clk 0:02:34]} 9. Qd2 {[%clk 0:02:12]}  Bg7 {[%clk 0:02:30]} 10. f3 {[%clk 0:02:12]}  h5 {[%clk 0:02:28]} 11. Ng3 {[%clk 0:02:04]}  Be6 {[%clk 0:02:25]} 12. Nge4 {[%clk 0:02:00]}  Nbd7 {[%clk 0:02:19]} 13. a3 {[%clk 0:01:51]}  Qa5 {[%clk 0:02:16]} 14. Bd3 {[%clk 0:01:31]}  Nb6 {[%clk 0:01:58]} 15. Nc5 {[%clk 0:01:28]}  O-O-O {[%clk 0:01:41]} 16. Nxe6 {[%clk 0:00:58]}  fxe6 {[%clk 0:01:40]} 17. Be5 {[%clk 0:00:55]}  Bh6 {[%clk 0:01:35]} 18. Bf4 {[%clk 0:00:48]}  Bxf4 {[%clk 0:01:20]} 19. Qxf4 {[%clk 0:00:49]}  Nbd5 {[%clk 0:00:59]} 20. Nxd5 {[%clk 0:00:46]}  Qxd5 {[%clk 0:00:38]} 21. Kb1 {[%clk 0:00:40]}  Qxd4 {[%clk 0:00:35]} 22. Qxd4 {[%clk 0:00:41]}  Rxd4 {[%clk 0:00:35]} 23. Bxg6 {[%clk 0:00:41]}  Rxd1+ {[%clk 0:00:33]} 24. Rxd1 {[%clk 0:00:42]}  Rg8 {[%clk 0:00:32]} 25. Bf7 {[%clk 0:00:37]}  Rxg2 {[%clk 0:00:32]} 26. Bxe6+ {[%clk 0:00:37]}  Kc7 {[%clk 0:00:33]} 27. h3 {[%clk 0:00:28]}  Rf2 {[%clk 0:00:30]} 28. Rd3 {[%clk 0:00:27]}  Rf1+ {[%clk 0:00:13]} 29. Ka2 {[%clk 0:00:27]}  h4 {[%clk 0:00:14]} 30. Rd4 {[%clk 0:00:23]}  Rxf3 {[%clk 0:00:12]} 31. Rxh4 {[%clk 0:00:23]}  Rf2 {[%clk 0:00:10]} 32. Kb3 {[%clk 0:00:22]}  Kd6 {[%clk 0:00:10]} 33. Bc8 {[%clk 0:00:19]}  b6 {[%clk 0:00:09]} 34. Rh8 {[%clk 0:00:17]}  e5 {[%clk 0:00:09]} 35. h4 {[%clk 0:00:16]}  Rh2 {[%clk 0:00:08]} 36. Kc3 {[%clk 0:00:11]}  Nd5+ {[%clk 0:00:07]} 37. Kb3 {[%clk 0:00:10]}  Nf4 {[%clk 0:00:05]} 38. Rh6+ {[%clk 0:00:10]}  Kd5 {[%clk 0:00:05]} 39. Bf5 {[%clk 0:00:09]}  e4 {[%clk 0:00:02]} 40. Rh7 {[%clk 0:00:07]}  Ke5 {[%clk 0:00:00]} 41. Bg4 {[%clk 0:00:06]} 1-0

[Event "January 2 Early 2024"]
[Site "https://www.chess.com"]
[Date "2024.01.02"]
[Round "8"]
[White "Lacasa Diaz, Josep Anton"]
[Black "Chandra, Vania Vindy"]
[Result "1-0"]
[Board "165"]
[TimeControl "180+1"]
[WhiteFideId "2203375"]
[BlackFideId "7103441"]
[WhiteElo "2314"]
[BlackElo "2194"]
[WhiteTeam "ESP"]
[BlackTeam "INA"]
[WhiteClock "0:02:07"]
[BlackClock "0:01:44"]

1. b3 {[%clk 0:03:00]}  d5 {[%clk 0:02:59]} 2. Bb2 {[%clk 0:03:00]}  c5 {[%clk 0:02:56]} 3. e3 {[%clk 0:02:59]}  Nc6 {[%clk 0:02:55]} 4. Nf3 {[%clk 0:02:56]}  Bg4 {[%clk 0:02:40]} 5. h3 {[%clk 0:02:54]}  Bxf3 {[%clk 0:02:37]} 6. Qxf3 {[%clk 0:02:54]}  e5 {[%clk 0:02:38]} 7. Bb5 {[%clk 0:02:50]}  Bd6 {[%clk 0:02:35]} 8. Qxd5 {[%clk 0:02:45]}  Ne7 {[%clk 0:02:28]} 9. Bxc6+ {[%clk 0:02:37]}  Nxc6 {[%clk 0:02:25]} 10. Qf3 {[%clk 0:02:33]}  O-O {[%clk 0:02:23]} 11. Nc3 {[%clk 0:02:32]}  Nb4 {[%clk 0:02:22]} 12. O-O-O {[%clk 0:02:28]}  f5 {[%clk 0:02:21]} 13. a3 {[%clk 0:02:11]}  e4 {[%clk 0:02:19]} 14. Qe2 {[%clk 0:02:08]}  Nc6 {[%clk 0:02:03]} 15. d3 {[%clk 0:02:08]}  exd3 {[%clk 0:01:55]} 16. Qxd3 {[%clk 0:02:08]}  Bc7 {[%clk 0:01:44]} 17. Qc4+ {[%clk 0:02:07]} 1-0